Cogmind - Beta 15 @@@ ROGUE MODE // 2025.08.15 @ 18:35:45 Player: Naughtyusername Result: Destroyed by MU-GH5(R) with Subdweller Laser Performance ------------- Evolutions (0) 0 Regions Visited (2) 400 Robots Destroyed (24) 120 Value Destroyed (496) 496 Prototype IDs (2) 40 Alien Tech Used (0) 0 Bonus (0) 0 TOTAL SCORE: 1056 Bonus ------- None Cogmind --------- Core Integrity 0/250 Matter 300/500 Energy 151/200 System Corruption 0% Temperature Cool (6) Movement Rolling (155) Ox5 Location -10/Subcaves Parts ------- > --- POWER (1) -------- Subdweller Power Source > --- PROPULSION (2) --- Wheel > --- UTILITY (2) ------ High-capacity Storage Unit High-capacity Matter Pod > --- WEAPON (2) ------- Light Assault Rifle Light Assault Rifle > --- INVENTORY (20) --- Wheel Wheel Wheel Compact Wheel Small Storage Unit Seismic Detector Light Assault Rifle Light Assault Rifle Shotgun Shotgun Shotgun Shotgun Grenade Launcher Grenade Launcher Peak State ------------ > --- POWER ------------ Light Ion Engine > --- PROPULSION ------- Wheel Compact Wheel > --- UTILITY ---------- High-capacity Storage Unit Improved Targeting Computer > --- WEAPON ----------- Shotgun Shotgun > --- INVENTORY -------- Light Ion Engine Wheel Compact Wheel Small Storage Unit Seismic Detector Light Assault Rifle Light Assault Rifle Light Assault Rifle Light Assault Rifle Shotgun Shotgun [Rating: 11] Favorites ----------- Power Light Ion Engine Engine Light Ion Engine Propulsion Wheel Leg Aluminum Leg Wheel Wheel Utility High-capacity Storage Unit Device Seismic Detector Storage High-capacity Storage Unit Processor Improved Targeting Computer Weapon Shotgun Energy Gun EM Pulse Gun Ballistic Gun Shotgun Launcher Grenade Launcher Build | -11 -10 -10 ------- Run | Yrd Mat Sub Slots Evolved . | . . . Power . | . . . Propulsion . | . . . Utility . | . . . Weapon . | . . . Parts Attached 17 | 4 9 4 Power 2 | . 1 1 Engine 2 | . 1 1 Core . | . . . Reactor . | . . . Propulsion 5 | 2 3 . Treads . | . . . Leg . | . . . Wheel 5 | 2 3 . Hover . | . . . Flight . | . . . Utility 4 | 1 2 1 Device 1 | 1 . . Storage 2 | . 1 1 Processor 1 | . 1 . Hackware . | . . . Protection . | . . . Artifact . | . . . Weapon 6 | 1 3 2 Energy Gun . | . . . Energy Cannon . | . . . Ballistic Gun 5 | 1 2 2 Ballistic Cannon . | . . . Launcher 1 | . 1 . Special Weapon . | . . . Impact Weapon . | . . . Slashing Weapon . | . . . Piercing Weapon . | . . . Special Melee Weapon . | . . . Unidentified Prototypes . | . . . Parts Lost 4 | . 2 2 Power 2 | . 1 1 Propulsion 2 | . 1 1 Utility . | . . . Weapon . | . . . Highest Loss Streak 2 | . 1 2 To Critical Strikes . | . . . Average Backups 12 | 2 12 14 Power . | 1 . . Propulsion 3 | 1 3 4 Utility 2 | . 2 2 Weapon 6 | . 6 8 Tool/Special . | . . . Unused Backups 17 | 11 1 5 Power 2 | 1 1 . Propulsion 8 | 6 . 2 Utility 1 | 1 . . Weapon 6 | 3 . 3 Tool/Special . | . . . Average Slot Usage (%) 99 | . 99 99 Engine 13 | . 13 14 Wheel 27 | . 27 27 Device 4 | . 3 10 Storage 14 | . 14 14 Processor 9 | . 10 2 Ballistic Gun 25 | . 27 17 Launcher 2 | . . 10 Peak Build Rating 11 | 7 11 11 Average Rating 9 | 6 10 8 On Entrance 7 | 6 7 10 Naked Turns . | . . . Heaviest Build 50 | 11 50 49 Greatest Support 26 | 26 26 20 Greatest Overweight (x) 3 | . 3 2 Average Overweight (x) 1 | . 1 2 Largest Inventory Capacity 20 | 8 20 20 Average Capacity 19 | 8 19 20 Most Carried 16 | 8 16 15 Average Carried 12 | 1 12 14 Final Capacity 20 | 8 20 20 Final Carried 15 | 3 15 14 Class Distribution -------------------- 95% | Mutant 4% | Scavenger-Mutant Dominant Class ---------------- Mutant | -10/Materials Mutant | -10/Subcaves Resources | -11 -10 -10 ----------- Run | Yrd Mat Sub Matter Collected 940 | 252 623 65 Remotely . | . . . Salvage Created 689 | 73 616 . Parts 48 | 6 42 . Haulers Intercepted 1 | . 1 . Recyclers Shooed 1 | 1 . . Parts Field Recycled . | . . . Retrieved Matter . | . . . Parts Self-Destructed 6 | . . 6 Prevented . | . . . Kills | -11 -10 -10 ------- Run | Yrd Mat Sub Combat Hostiles Destroyed 14 | . 13 1 Guns 13 | . 13 . AOE 1 | . . 1 Classes Destroyed 10 | 2 7 1 Worker 3 | . 3 . Builder 2 | . 2 . Tunneler 1 | 1 . . Hauler 1 | . 1 . Recycler 1 | 1 . . Operator 1 | . 1 . Watcher 1 | . 1 . Swarmer 3 | . 3 . Grunt 10 | . 10 . Subdweller 1 | . . 1 Best Kill Streak 4 | 2 4 1 Combat Bots Only 4 | . 4 1 Max Kills in Single Turn 1 | 1 1 1 Gunslinging . | . . . Exploded 1 | . . 1 Melee . | . . . Uniques/NPCs Destroyed . | . . . Combat | -11 -10 -10 -------- Run | Yrd Mat Sub Hostile Shots Fired 61 | . 46 15 Missed 13 | . 9 4 Hits 48 | . 37 11 Projectile 48 | . 37 11 Critical Strikes 2 | . 1 1 Damage Taken 672 | . 443 229 Core 255 | . 156 99 Absorbed by Shields . | . . . Core Remaining (%) 100 | 100 . . Volleys Fired 63 | 6 48 9 Largest 2 | 2 2 2 Hottest 50 | 40 46 50 Shots Fired 122 | 12 95 15 Gun 117 | 12 94 11 Cannon . | . . . Launcher 5 | . 1 4 Special . | . . . Kinetic 117 | 12 94 11 Thermal . | . . . Explosive 5 | . 1 4 Electromagnetic . | . . . Robot Hit Streak 15 | 3 15 11 Robot Miss Streak 5 | 3 5 1 Penetration Max . | . . . Secondary Targets 1 | . 1 . Max Gunslinging Chain 1 | . 1 . Shots Hit Robots 90 | 6 72 12 Core Hits 54 | 5 45 4 Critical Kills . | . . . Critical Parts Destroyed . | . . . Critical Strikes . | . . . Melee Attacks . | . . . Impact . | . . . Slashing . | . . . Piercing . | . . . Sneak Attacks . | . . . Combat Hostiles . | . . . Follow-up Attacks . | . . . Damage Inflicted 1351 | 47 1176 128 Guns 1296 | 47 1176 73 Cannons . | . . . Explosions 55 | . . 55 Melee . | . . . Ramming . | . . . Kinetic 1296 | 47 1176 73 Thermal . | . . . Explosive 55 | . . 55 Electromagnetic . | . . . Impact . | . . . Slashing . | . . . Piercing . | . . . Highest Corruption . | . . . Average Corruption . | . . . Corruption Purged . | . . . Corruption Blocked . | . . . Overload Shots . | . . . Overflow Damage . | . . . Projectiles . | . . . Explosions . | . . . Melee . | . . . Knockbacks . | . . . Impact . | . . . Kinetic . | . . . Secondary . | . . . Self-Inflicted Damage 3 | . 3 . Shots 1 | . 1 . Rammed . | . . . Targets Rammed . | . . . Kicked . | . . . Crushed . | . . . Highest Temperature 22 | . 22 . Average Temperature 3 | . 3 . Received Heat Transfer 300 | . 234 66 Siege Activations . | . . . Martial Activations . | . . . Shielding Activations . | . . . Robots Disrupted . | . . . Combat Hostiles . | . . . Robots Corrupted . | . . . Combat Hostiles . | . . . Parts Fried . | . . . Impact Corruptions . | . . . Robots Melted . | . . . Combat Hostiles . | . . . Parts Melted . | . . . Heat Transferred . | . . . Parts Sabotaged . | . . . Parts Stolen . | . . . Parts Stripped . | . . . Power Chain Reactions . | . . . Alert | -11 -10 -10 ------- Run | Yrd Mat Sub Maximum Alert Level . | . . . Low Security (%) 100 | 100 100 . Level 1 . | . . . Level 2 . | . . . Level 3 . | . . . Level 4 . | . . . Level 5 . | . . . High Security . | . . . Max Security . | . . . Peak Influence 113 | 5 113 . Initial . | . . . Average 45 | 2 47 . Influence Increases 438 | 10 428 . Destroy 0b10 Robot/C 260 | . 260 . Destroy 0b10 Robot/NC 65 | 10 55 . Destroy Leader 64 | . 64 . Successful Hack 28 | . 28 . Destroy Structure 6 | . 6 . Lose Combat Pursuer 15 | . 15 . Influence Decreases 438 | 10 362 66 Entered New Map 33 | . . 33 Time Decay 395 | 10 352 33 Lost Part 10 | . 10 . Squads Dispatched 3 | . 3 . Investigation 1 | . 1 . Extermination . | . . . Reinforcement 2 | . 2 . Assault . | . . . Garrison . | . . . Intercept . | . . . Searches Triggered . | . . . Construction Impeded . | . . . Haulers Reinforced . | . . . Active Scanning Responses . | . . . Cargo Convoy Interrupts . | . . . Stealth | -11 -10 -10 --------- Run | Yrd Mat Sub Distress Signals . | . . . Communications Jammed . | . . . Distress Signals . | . . . Times Spotted 22 | . 19 3 Peak Tracking Total 4 | . 4 2 Tactical Retreats 1 | . 1 . Traps | -11 -10 -10 ------- Run | Yrd Mat Sub Traps Triggered 4 | . 4 . Indirectly . | . . . Trap Hack Attempts . | . . . Triggered . | . . . Disarmed . | . . . Reprogrammed . | . . . Reused . | . . . Traps Extracted . | . . . Installed . | . . . Triggered . | . . . Machines | -11 -10 -10 ---------- Run | Yrd Mat Sub Machines Disabled . | . . . Max in Single Turn . | . . . Machines Repaired . | . . . Machines Dismantled . | . . . Machines Sabotaged . | . . . Overloaded Fab Kills . | . . . Hacking | -11 -10 -10 --------- Run | Yrd Mat Sub Machines Accessed 7 | . 7 . Terminals 7 | . 7 . Fabricators . | . . . Repair Stations . | . . . Recycling Units . | . . . Scanalyzers . | . . . Garrison Access . | . . . Total Hacks 22 | . 22 . Successful 12 | . 12 . Failed 10 | . 10 . Catastrophic 2 | . 2 . Database Lockouts . | . . . Manual 21 | . 21 . Terminals 22 | . 22 . Fabricators . | . . . Repair Stations . | . . . Recycling Units . | . . . Scanalyzers . | . . . Garrison Access . | . . . Terminal Hacks 3 | . 3 . Prototype ID Bank 1 | . 1 . Terminal Index 1 | . 1 . Registered Components 1 | . 1 . Fabricator Hacks . | . . . Repair Station Hacks . | . . . Recycling Unit Hacks . | . . . Scanalyzer . | . . . Garrison Access Hacks . | . . . Unauthorized Hacks 9 | . 9 . Terminals 9 | . 9 . Botnet 3 | . 3 . Skim 6 | . 6 . Fabricators . | . . . Repair Stations . | . . . Recycling Units . | . . . Scanalyzers . | . . . Garrison Access . | . . . Data Cores Recovered . | . . . Used . | . . . Hacking Detections 7 | . 7 . Full Trace Events . | . . . Feedback Events . | . . . Feedback Blocked . | . . . Robot Schematics Acquired . | . . . Robots Built . | . . . Authchips . | . . . Time . | . . . Total Robot Build Rating . | . . . Part Schematics Acquired . | . . . Parts Built . | . . . Authchips . | . . . Time . | . . . Total Part Build Rating . | . . . Parts Repaired . | . . . Time . | . . . Parts Recycled . | . . . Recycled Matter . | . . . Retrieved Matter . | . . . Retrieved Components . | . . . Parts Scanalyzed . | . . . Part Schematics Acquired . | . . . Parts Damaged . | . . . Bothacking | -11 -10 -10 ------------ Run | Yrd Mat Sub Used RIF Installer . | . . . Robots Hacked . | . . . Non-combat . | . . . Combat . | . . . Robot Hacks Applied . | . . . Relay Couplers Released . | . . . Fabnet Peak Effective % . | . . . Robots Rewired . | . . . Allies Hacked . | . . . Hacks Repelled . | . . . Allies | -11 -10 -10 -------- Run | Yrd Mat Sub Total Allies . | . . . Largest Group . | . . . Highest-Rated Group . | . . . Highest-Rated Ally . | . . . Total Orders . | . . . Ally Attacks . | . . . Total Damage . | . . . Kills . | . . . Allies Corrupted . | . . . Allies Melted . | . . . Intel | -11 -10 -10 ------- Run | Yrd Mat Sub Active Infowar (turns) 428 | 17 222 189 Seismic 428 | 17 222 189 Robot Analysis Total . | . . . Derelict Logs Recovered . | . . . Drone Launches . | . . . Drone Recoveries . | . . . Exploration | -11 -10 -10 ------------- Run | Yrd Mat Sub Turns Passed 1266 | 55 964 247 Spaces Moved 817 | 33 593 191 Core . | . . . Treads . | . . . Legs . | . . . Wheels 817 | 33 593 191 Hover . | . . . Flight . | . . . Fastest Speed 90 | 90 90 110 Average Speed 105 | 90 104 110 Slowest Speed 145 | 90 145 110 Overloaded Moves . | . . . Propulsion Burnouts . | . . . Robots Hopped . | . . . Potential Cave-ins . | . . . Cave-ins Triggered . | . . . Exploration Rate (%) 35 | 3 84 19 Regions Visited 2 Branch Regions 1 Pre-discovered Areas 1 | . 1 . Known Exits Taken 1 | . 1 . Unknown Exits Taken 1 | 1 . . Scrap Searched . | . . . Spaces Dug 6 | . 6 . Terrain Destroyed 24 | . 6 18 Melee . | . . . Projectile . | . . . AOE 24 | . 6 18 Terrain Rammed . | . . . Walls Destroyed . | . . . Machines Disabled . | . . . Actions | -11 -10 -10 --------- Run | Yrd Mat Sub Total 1101 | 52 835 214 Wait 171 | . 170 1 Move 815 | 32 592 191 Hop . | . . . Pick Up 13 | 2 9 2 Fast Attach 6 | 1 5 . Attach 7 | 3 2 2 Detach 4 | 3 . 1 Swap 14 | . 8 6 Drop 7 | 5 1 1 Fire 63 | 6 48 9 Melee . | . . . Ram . | . . . Kick . | . . . Crush . | . . . Escape Stasis . | . . . Rewire 1 | . . 1 Trap . | . . . Miscellaneous . | . . . Route ------- -11/Scrapyard -10/Materials (discovered 6 exits: *Mat x3 / [*Min x2] / *Sub) -10/Subcaves History --------- Turn | Location | Event 16 | -11/Scrapyard | Discovered new exit (range 3) 56 | -11/Scrapyard | Entered Materials 307 | -10/Materials | Discovered new exit (range 16) 312 | -10/Materials | Build established: Mutant 471 | -10/Materials | Discovered new exit (range 12) 582 | -10/Materials | Discovered new exit (range 3) 652 | -10/Materials | Discovered new exit (range 15) 790 | -10/Materials | Identified exit to Subcaves 790 | -10/Materials | Identified exit to Materials 790 | -10/Materials | Learned location of 1 exit from Materials 840 | -10/Materials | Learned 4 Materials zone layouts 881 | -10/Materials | Core integrity fell below 50% 882 | -10/Materials | Learned 4 Materials zone layouts 913 | -10/Materials | Learned location of 1 exit from Storage 933 | -10/Materials | Learned Storage trap positions 941 | -10/Materials | Learned location of Mines (-10) 957 | -10/Materials | Loaded intel: 20 trap records 982 | -10/Materials | Learned 2 Storage zone layouts 1020 | -10/Materials | Entered Subcaves 1139 | -10/Subcaves | Shifting Twisted Machinery released Sub. Power Source 1141 | -10/Subcaves | A swath of the cavern ceiling suddenly collapsed 1253 | -10/Subcaves | A Subdweller sparked back to life 1253 | -10/Subcaves | A Subdweller sparked back to life 1260 | -10/Subcaves | Core integrity fell below 20% 1267 | -10/Subcaves | Destroyed by MU-GH5(R) with Subdweller Laser Last Messages --------------- 01055_ Acquired Hcp. Matter Pod. 01068_ Discarded Imp. Targeting Computer. 01097_ AE-HR1(u) builds Twisted Machinery. Sub. Power Source falls loose from the Twisted Machinery. 01141_ 2X-X5G(R) crushed by falling debris. A swath of the cavern ceiling suddenly collapses. 01146_ 2X-X5G(R) destroyed. 01164_ Acquired Sub. Power Source. 01249_ Attempting to rewire TR-VQ7(R). 01249_ TR-VQ7(R) is broken beyond repair. 01253_ TR-VQ7(R) creaks and sparks as it begins to move. 01253_ MU-GH5(R) creaks and sparks as it begins to move. 01254_ Wheel destroyed. 01259_ TR-VQ7(R) affixes Scrap Shield Fragment to Scrap Shield. 01260_ Lgt. Ion Engine destroyed. Map ----- +----------------------------------------------------+ | ????????????????????? ????? ???????????????????? | | ??????????????????? ???? ???????????????????? | | ???????????????????? ???? ????????????????????? | | ????????????????????? ??? ????????????????????? | | ?????????????????????? ??# ????????????????????? | | ??????????????????????? ## ??????????????????##? | | ???????????????????????? ?????????????????? ## | | ?????????????????##?????? ??????????????????? | | ????????????????## ##???## ??????????????????? # | | ????????????????# #??# ##????????????####?? | | ?????????????????# ### ##?????????## ### | | ????????????????## ########### | | ????????????????# ## ## ## | | ???????????????# | | ???????????????# ### ### ## | | ??????????????????????## #### # # ## | | ??????????????????????## #?# # | | ???????????????????#### #?# # | | ??????????????????## ##?## ### ## # | | ??????????????##### ##???## #?###### | | ??????????????# ####?????# ##????## | | ??????????????# ##????????####??#### ## | | ??????????????# #<######?###???### ##? | | ?????????##???# ### ## ##??# ##?# | | ????????## #### #?<< R #??## ### ### | | ???????## #?# @R< #???#???## ## | | ???????# #?# < ##??????## | | ???????# #?## #?????## | | ???????## #??## #????## | | ????????## ##??# ######???## " | | ?????????# ## #??# ##????????# " # | | ?????????# ?# #### ## #?????# " # | | ?????????# ### #??????##### " | | ????????## ## ### ## #?????????##" | | ????????# #?# #### #??????????## | | ????????## ##?# ##???# ""#???????????# # | | ?????????#### #??###????? "##???????????## ## | | ????????????## #?????????#" #???????????? ### | | ?????????????# ##??????????" ""?????????" ### | | ?????????????## #???????????# ##????????# ####?# | | ??????????????####?????????????#????????????????## | | ?????????????????????????????????????????????????# | | ?????????????????????????????????????????????????? | | ?????????????????????????????????????????????????? | | ?????????????????????????????????????????????????? | | ?????????????????????????????????????????????????? | | ?????????????????????????????????????????????????? | | ?????????????????????????????????????????????????? | | ?????????????????????????????????????????????????? | | ?????????????????????????????????????????????????? | +----------------------------------------------------+ Best States ------------- Heat Dissipation 25 Energy Generation 10 Energy Capacity 125 Matter Stores 311 Matter Capacity 500 Sight Range 16 Terrain Scan Density 10 Evasion (%) 42 Targeting Accuracy 6 Item Schematics ----------------- None Robot Schematics ------------------ None Fabricated ------------ Nothing Repaired ---------- Nothing Alien Tech Used ----------------- None Achievements -------------- None Challenges ------------ None Game ------ Seed GrapheneDispersionShovel Manual? 0 Play Time 00:09:52 Cumulative 81.4 hours Start 2025.08.15 @ 18:24:04 End 2025.08.15 @ 18:35:45 Sessions 2 Manual Loads 0 Difficulty Rogue Special Mode None Game No. 28 Rogue 28 Adventurer 0 Explorer 0 Win Type - Total 1 Types 0/0/1/0/0/0/0/0/0/0 Lore% 58 Gallery% 53 Achievement% 76 Wizard Run 0 Options --------- Layout 2 ASCII 0 Keyboard 1 Movement Vi Keybinds 0 Fullscreen 1 Font 28/Dina Map View 50x52 Zoom Use 0% Tactical HUD 1 Map Filters NONE Filters NONE Steam 1 RUN: dee7f560-8de7-466e-86fa-9e3bfa9e6e19